fUST/lending_fUST_20240502
["ID","MTS","AMOUNT","RATE_DAILY","PERIOD"]
[325211288,1714589451976,-2327.99,0.00053424,2]
[325211289,1714589451988,-500.0,0.00053424,120]
[325211290,1714589452004,-464.36265,0.00053424,7]
[325211291,1714589452016,-464.36265,0.00053424,7]
[325211292,1714589452028,-464.36265,0.00053424,7]
[325211293,1714589452040,-500.0,0.00053424,120]
[325211294,1714589452052,-1536.52,0.00053424,120]
[325211295,1714589452063,-500.0,0.00053424,120]
[325211296,1714589452075,-500.0,0.00053424,120]
[325211297,1714589452087,-464.36265,0.00053424,7]
[325211298,1714589452098,-500.0,0.00053424,120]
[325211299,1714589452110,-464.36265,0.00053424,7]
[325211300,1714589452121,-464.36265,0.00053424,7]
[325211301,1714589452132,-503.71462416,0.00053424,120]
[325211302,1714589452143,-500.0,0.00053424,120]
[325211303,1714589452154,-1964.27,0.00053424,120]
[325211304,1714589452165,-692.14,0.00053424,120]
[325211305,1714589452176,-151.0,0.00053424,7]
[325211306,1714589452190,-500.0,0.00053424,120]
[325211307,1714589452206,-3964.15,0.00053424,120]
[325211308,1714589452217,-151.0,0.00053424,7]
[325211309,1714589452229,-500.0,0.00053424,120]
[325211310,1714589452240,-151.0,0.00053424,7]
[325211311,1714589452252,-151.0,0.00053424,7]
[325211312,1714589452263,-500.0,0.00053424,120]
[325211313,1714589452274,-266.662145,0.00053424,7]
[325211314,1714589452286,-266.662145,0.00053424,7]
[325211315,1714589452297,-266.662145,0.00053424,7]
[325211316,1714589452308,-266.662145,0.00053424,7]
[325211317,1714589452320,-500.0,0.00053424,120]
[325211318,1714589452332,-516.10449329,0.00053424,120]
[325211319,1714589452344,-1066.85,0.00053424,120]
[325211320,1714589452355,-500.0,0.00053424,120]
[325211321,1714589452367,-222.05634145,0.00053424,120]
[325211322,1714589452378,-831.6,0.00053424,120]
[325211323,1714589452389,-151.0,0.00053424,7]
[325211324,1714589452402,-151.0,0.00053424,7]
[325211325,1714589452412,-151.0,0.00053424,7]
[325211326,1714589452422,-151.0,0.00053424,7]
[325211327,1714589452431,-500.0,0.00053424,120]
[325211328,1714589452443,-266.662145,0.00053424,7]
[325211329,1714589452701,-266.662145,0.00053424,7]
[325211330,1714589452716,-1693.5,0.00053424,30]
[325211331,1714589452726,-266.662145,0.00053424,7]
[325211332,1714589452737,-151.0,0.00053424,7]
[325211333,1714589452747,-500.0,0.00053424,120]
[325211334,1714589452757,-266.662145,0.00053424,7]
[325211335,1714589452767,-151.0,0.00053424,7]
[325211336,1714589452777,-151.0,0.00053424,7]
[325211337,1714589452787,-151.0,0.00053424,7]
[325211338,1714589452798,-529.02583533,0.00053424,120]
[325211339,1714589452807,-609.08,0.00053424,120]
[325211340,1714589452818,-500.0,0.00053424,120]
[325211341,1714589452828,-1155.56,0.00053424,120]
[325211342,1714589452838,-500.0,0.00053424,120]
[325211343,1714589452847,-500.0,0.00053424,120]
[325211344,1714589452856,-915.284392,0.00053424,7]
[325211345,1714589452865,-915.284392,0.00053424,7]
[325211346,1714589452875,-915.284392,0.00053424,7]
[325211347,1714589452884,-623.92,0.00053424,120]
[325211348,1714589452897,-915.284392,0.00053424,7]
[325211349,1714589452907,-500.0,0.00053424,120]
[325211350,1714589452920,-915.284392,0.00053424,7]
[325211351,1714589452932,-915.284392,0.00053424,7]
[325211352,1714589452948,-915.284392,0.00053424,7]
[325211353,1714589452957,-915.284392,0.00053424,7]
[325211354,1714589452967,-500.0,0.00053424,120]
[325211355,1714589452976,-557.95691212,0.00053424,120]
[325211356,1714589452986,-500.0,0.00053424,120]
[325211357,1714589452997,-500.0,0.00053424,120]
[325211358,1714589453007,-5097.71,0.00053424,120]
[325211359,1714589453016,-849.73,0.00053424,7]
[325211360,1714589453030,-500.0,0.00053424,120]
[325211361,1714589453041,-151.0,0.00053424,7]
[325211362,1714589453050,-151.0,0.00053424,7]
[325211363,1714589453060,-433.09130654,0.00053424,120]
[325211364,1714589453069,-151.0,0.00053424,7]
[325211365,1714589453078,-151.0,0.00053424,7]
[325211366,1714589453088,-1000.8,0.00053424,120]
[325211367,1714589453099,-500.0,0.00053424,120]
[325211368,1714589453108,-158.139503,0.00053424,7]
[325211369,1714589453118,-500.0,0.00053424,120]
[325211370,1714589453127,-158.139503,0.00053424,7]
[325211371,1714589453137,-158.139503,0.00053424,7]
[325211372,1714589453146,-158.139503,0.00053424,7]
[325211373,1714589453156,-500.0,0.00053424,120]
[325211374,1714589453165,-588.11334972,0.00053424,120]
[325211375,1714589453174,-151.0,0.00053424,7]
[325211376,1714589453184,-500.0,0.00053424,120]
[325211377,1714589453197,-151.0,0.00053424,7]
[325211378,1714589453206,-151.0,0.00053424,7]
[325211379,1714589453216,-1126.47,0.00053424,120]
[325211380,1714589453225,-151.0,0.00053424,7]
[325211381,1714589453235,-500.0,0.00053424,120]
[325211382,1714589453244,-500.0,0.00053424,120]
[325211383,1714589453254,-500.0,0.00053424,120]
[325211384,1714589453263,-158.139503,0.00053424,7]
[325211385,1714589453272,-158.139503,0.00053424,7]
[325211386,1714589453282,-158.139503,0.00053424,7]
[325211387,1714589453291,-500.0,0.00053424,120]
[325211388,1714589453301,-158.139503,0.00053424,7]
[325211389,1714589453310,-500.0,0.00053424,120]
[325211390,1714589453320,-300.0,0.00053424,2]
[325211391,1714589453330,-500.0,0.00053424,120]
[325211392,1714589453340,-568.655142,0.00053424,7]
[325211393,1714589453350,-582.12484227,0.00053424,120]
[325211394,1714589453360,-489.75932267,0.00053424,30]
[325211395,1714589453370,-568.655142,0.00053424,7]
[325211396,1714589453379,-568.655142,0.00053424,7]
[325211397,1714589453389,-500.0,0.00053424,120]
[325211398,1714589453398,-568.655142,0.00053424,7]
[325211399,1714589453407,-568.655142,0.00053424,7]
[325211400,1714589453416,-568.655142,0.00053424,7]
[325211401,1714589453425,-500.0,0.00053424,120]
[325211402,1714589453435,-500.0,0.00053424,120]
[325211403,1714589453448,-500.0,0.00053424,120]
[325211404,1714589453457,-500.0,0.00053424,120]
[325211405,1714589453466,-300.0,0.00053424,7]
[325211406,1714589453476,-500.0,0.00053424,120]
[325211407,1714589453485,-2416.17,0.00053424,120]
[325211408,1714589453494,-500.0,0.00053424,120]
[325211409,1714589453503,-500.0,0.00053424,120]
[325211410,1714589453512,-563.76523579,0.00053424,120]
[325211411,1714589453522,-500.0,0.00053424,120]
[325211412,1714589453531,-532.0,0.00053424,120]
[325211413,1714589453540,-500.0,0.00053424,120]
[325211414,1714589453550,-500.0,0.00053424,120]
[325211415,1714589453559,-535.92,0.00053424,120]
[325211416,1714589453568,-500.0,0.00053424,120]
[325211417,1714589453577,-15068.53,0.00053424,120]
[325211418,1714589453586,-592.33,0.00053424,120]
[325211419,1714589453596,-500.0,0.00053424,120]
[325211420,1714589453605,-500.0,0.00053424,120]
[325211421,1714589453614,-500.0,0.00053424,120]
[325211422,1714589453623,-500.0,0.00053424,120]
[325211423,1714589453633,-500.0,0.00053424,120]
[325211424,1714589453642,-2249.19,0.00053424,120]
[325211425,1714589453651,-347.96518211,0.00053424,120]
[325211426,1714589453660,-500.0,0.00053424,120]
[325211427,1714589453670,-158.27499171,0.00053424,120]
[325211428,1714589453679,-151.0,0.00053424,7]
[325211429,1714589453690,-500.0,0.00053424,120]
[325211430,1714589453699,-196.312664,0.00053424,7]
[325211431,1714589453709,-516.72858567,0.00053424,120]
[325211432,1714589453718,-472.371396,0.00053424,7]
[325211433,1714589453728,-500.0,0.00053424,120]
[325211434,1714589453739,-1101.12,0.00053424,120]
[325211435,1714589453748,-472.371396,0.00053424,7]
[325211436,1714589453758,-472.371396,0.00053424,7]
[325211437,1714589453767,-500.0,0.00053424,120]
[325211438,1714589453777,-500.0,0.00053424,120]
[325211439,1714589453787,-672.45,0.00053424,120]
[325211440,1714589453797,-472.371396,0.00053424,7]
[325211441,1714589453806,-922.86,0.00053424,120]
[325211442,1714589453816,-500.0,0.00053424,120]
[325211443,1714589453825,-472.371396,0.00053424,7]
[325211444,1714589453834,-472.371396,0.00053424,7]
[325211445,1714589453844,-500.0,0.00053424,120]
[325211446,1714589453853,-1268.84,0.00053424,120]
[325211447,1714589453863,-546.33,0.00053424,120]
[325211448,1714589453873,-500.0,0.00053424,120]
[325211449,1714589453882,-2934.33,0.00053424,120]
[325211450,1714589453891,-500.0,0.00053424,120]
[325211451,1714589453902,-500.0,0.00053424,120]
[325211452,1714589453912,-500.0,0.00053424,120]
[325211453,1714589453921,-269.710465,0.00053424,7]
[325211454,1714589453930,-151.0,0.00053424,7]
[325211455,1714589453941,-151.0,0.00053424,7]
[325211456,1714589453950,-269.710465,0.00053424,7]
[325211457,1714589453959,-151.0,0.00053424,7]
[325211458,1714589453969,-151.0,0.00053424,7]
[325211459,1714589453978,-500.0,0.00053424,120]
[325211460,1714589453988,-269.710465,0.00053424,7]
[325211461,1714589454007,-500.0,0.00053424,120]
[325211462,1714589454020,-500.0,0.00053424,120]
[325211463,1714589454030,-500.0,0.00053424,120]
[325211464,1714589454040,-3224.88,0.00053424,120]
[325211465,1714589454049,-500.0,0.00053424,120]
[325211466,1714589454058,-269.710465,0.00053424,7]
[325211467,1714589454067,-269.710465,0.00053424,7]
[325211468,1714589454076,-269.710465,0.00053424,7]
[325211469,1714589454085,-151.0,0.00053781,120]
[325211470,1714589454094,-153.0,0.00053918,2]
[325211471,1714589454103,-153.0,0.00053918,2]
[325211472,1714589454112,-500.0,0.00053972,120]
[325211473,1714589454122,-500.0,0.00053972,120]
[325211474,1714589454131,-500.0,0.00053972,120]
[325211475,1714589454140,-352.30458473,0.00053972,120]
[325211476,1714589454150,-500.0,0.00053972,120]
[325211477,1714589454159,-500.0,0.00053972,120]
[325211478,1714589454168,-1031.01,0.00053972,120]
[325211479,1714589454178,-500.0,0.00053972,120]
[325211480,1714589454186,-500.0,0.00053972,120]
[325211481,1714589454198,-500.0,0.00053972,120]
[325211482,1714589454207,-508.8122228,0.00053972,120]
[325211483,1714589454216,-500.0,0.00053972,120]
[325211484,1714589454225,-500.0,0.00053972,120]
[325211485,1714589454234,-500.0,0.00053972,120]
[325211486,1714589454243,-839.27,0.00053972,120]
[325211487,1714589454253,-500.0,0.00053972,3]
[325211488,1714589454262,-500.0,0.00053972,120]
[325211489,1714589454271,-500.0,0.00053972,120]
[325211490,1714589454281,-744.41,0.00053972,120]
[325211491,1714589454290,-500.0,0.00053972,120]
[325211492,1714589454299,-500.0,0.00053972,120]
[325211493,1714589454308,-151.0,0.00053972,7]
[325211494,1714589454317,-151.0,0.00053972,7]
[325211495,1714589454326,-502.14,0.00053972,120]
[325211496,1714589454335,-814.33,0.00053972,120]
[325211497,1714589454344,-151.0,0.00053972,7]
[325211498,1714589454354,-1274.03,0.00053972,120]
[325211499,1714589454363,-600.0,0.00053972,120]
[325211500,1714589454372,-750.3,0.00053972,120]
[325211501,1714589454381,-500.0,0.00053972,120]
[325211502,1714589454390,-500.0,0.00053972,120]
[325211503,1714589454399,-500.0,0.00053972,120]
[325211504,1714589454408,-526.6,0.00053972,120]
[325211505,1714589454417,-500.0,0.00053972,120]
[325211506,1714589454425,-1061.1,0.00053972,120]
[325211507,1714589454434,-500.0,0.00053972,120]
[325211508,1714589454445,-673.0,0.00053972,120]
[325211509,1714589454454,-500.0,0.00053972,120]
[325211510,1714589454464,-500.0,0.00053972,120]
[325211511,1714589454473,-500.0,0.00053972,120]
[325211512,1714589454481,-500.0,0.00053972,120]
[325211513,1714589454490,-500.0,0.00053972,120]
[325211514,1714589454499,-500.0,0.00053972,120]
[325211515,1714589454509,-913.35,0.00053972,2]
[325211516,1714589454518,-500.0,0.00053972,120]
[325211517,1714589454527,-626.22634825,0.00053972,120]
[325211518,1714589454537,-874.09,0.00053972,120]
[325211519,1714589454546,-152.65888081,0.00053972,20]
[325211520,1714589454556,-500.0,0.00053972,120]
[325211521,1714589454564,-500.0,0.00053972,120]
[325211522,1714589454574,-500.82733921,0.00053972,120]
[325211523,1714589454583,-500.0,0.00053972,120]
[325211524,1714589454592,-500.0,0.00053972,120]
[325211525,1714589454601,-500.0,0.00053972,120]
[325211526,1714589454610,-500.0,0.00053972,120]
[325211527,1714589454619,-500.0,0.00053972,120]
[325211528,1714589454629,-197.38624522,0.00053972,120]
[325211529,1714589454638,-500.0,0.00053972,120]
[325211530,1714589454647,-500.0,0.00053972,120]
[325211531,1714589454657,-193.66475377,0.00053972,120]
[325211532,1714589454666,-500.0,0.00053972,120]
[325211533,1714589454675,-797.88,0.00053972,120]
[325211534,1714589454684,-544.46313943,0.00053972,120]
[325211535,1714589454695,-512.65594973,0.00053972,120]
[325211536,1714589454705,-500.0,0.00053972,120]
[325211537,1714589454714,-500.0,0.00053972,120]
[325211538,1714589454723,-500.0,0.00053972,120]
[325211539,1714589454733,-500.0,0.00053972,120]
[325211540,1714589454742,-500.0,0.00053972,120]
[325211541,1714589454751,-500.0,0.00053972,120]
[325211542,1714589454761,-358.07397349,0.00053972,120]
[325211543,1714589454770,-500.0,0.00053972,120]
[325211544,1714589454780,-500.0,0.00053972,120]
[325211545,1714589454789,-1147.1,0.00053972,120]
[325211546,1714589454799,-500.0,0.00053972,120]
[325211547,1714589454809,-500.0,0.00053972,120]
[325211548,1714589454819,-500.0,0.00053972,120]
[325211549,1714589454829,-1107.99,0.00053972,120]
[325211550,1714589454838,-567.44,0.00053972,120]
[325211551,1714589454848,-151.0,0.00053972,7]
[325211552,1714589454858,-705.12,0.00053972,120]
[325211553,1714589454867,-500.0,0.00053972,120]
[325211554,1714589454877,-500.0,0.00053972,120]
[325211555,1714589454887,-500.0,0.00053972,120]
[325211556,1714589454896,-500.0,0.00053972,5]
[325211557,1714589454905,-386.49566674,0.00053972,120]
[325211558,1714589454915,-500.0,0.00053972,120]
[325211559,1714589454926,-500.0,0.00053972,120]
[325211560,1714589454936,-500.0,0.00053972,120]
[325211561,1714589454951,-500.0,0.00053972,120]
[325211562,1714589454961,-500.0,0.00053972,120]
[325211563,1714589454970,-719.65,0.00053972,120]
[325211564,1714589454979,-555.12919259,0.00053972,120]
[325211565,1714589454989,-500.0,0.00053972,120]
[325211566,1714589455002,-495.23760558,0.00053972,120]
[325211567,1714589455012,-500.0,0.00053972,120]
[325211568,1714589455022,-500.0,0.00053972,120]
[325211569,1714589455033,-500.0,0.00053972,120]
[325211570,1714589455046,-500.0,0.00053972,120]
[325211571,1714589455054,-500.0,0.00053972,120]
[325211572,1714589455062,-500.0,0.00053972,120]
[325211573,1714589455072,-500.0,0.00053972,120]
[325211574,1714589455082,-500.0,0.00053972,120]
[325211575,1714589455091,-916.2,0.00053972,120]
[325211576,1714589455102,-500.0,0.00053972,120]
[325211577,1714589455111,-772.53,0.00053972,120]
[325211578,1714589455121,-500.0,0.00053972,120]
[325211579,1714589455130,-500.0,0.00053972,120]
[325211580,1714589455140,-437.71081319,0.00053972,120]
[325211581,1714589455149,-511.91,0.00053972,120]
[325211582,1714589455158,-501.18357816,0.00053972,120]
[325211583,1714589455167,-501.60155306,0.00053972,120]
[325211584,1714589455176,-514.42,0.00053972,120]
[325211585,1714589455185,-500.0,0.00053972,120]
[325211586,1714589455197,-500.0,0.00053972,120]
[325211587,1714589455206,-500.0,0.00053972,120]
[325211588,1714589455215,-500.0,0.00053972,120]
[325211589,1714589455224,-500.0,0.00053972,120]
[325211590,1714589455234,-1198.04,0.00053972,120]
[325211591,1714589455243,-500.0,0.00053972,120]
[325211592,1714589455252,-500.0,0.00053972,120]
[325211593,1714589455262,-500.0,0.00053972,120]
[325211594,1714589455271,-500.0,0.00053972,120]
[325211595,1714589455280,-500.0,0.00053972,120]
[325211596,1714589455289,-500.0,0.00053972,120]
[325211597,1714589455299,-625.13,0.00053972,120]
[325211598,1714589455309,-500.0,0.00053972,120]
[325211599,1714589455318,-500.0,0.00053972,120]
[325211600,1714589455327,-575.5951722,0.00053972,120]
[325211601,1714589455337,-500.0,0.00053972,120]
[325211602,1714589455346,-500.51115075,0.00053972,120]
[325211603,1714589455356,-500.0,0.00053972,120]
[325211604,1714589455365,-197.665273,0.00053972,7]
[325211605,1714589455375,-197.665273,0.00053972,7]
[325211606,1714589455384,-197.665273,0.00053972,7]
[325211607,1714589455394,-500.0,0.00053972,120]
[325211608,1714589455403,-500.0,0.00053972,120]
[325211609,1714589455412,-2237.61,0.00053972,120]
[325211610,1714589455421,-1140.05,0.00053972,120]
[325211611,1714589455432,-719.83,0.00053972,120]
[325211612,1714589455442,-500.0,0.00053972,120]
[325211613,1714589455453,-500.0,0.00053972,30]
[325211614,1714589455464,-500.0,0.00053972,120]
[325211615,1714589455473,-500.0,0.00053972,120]
[325211616,1714589455483,-500.0,0.00053972,120]
[325211617,1714589455492,-777.36,0.00053972,120]
[325211618,1714589455502,-965.17,0.00053972,120]
[325211619,1714589455512,-911.4,0.00053972,120]
[325211620,1714589455522,-675.55,0.00053972,120]
[325211621,1714589455532,-595.81,0.00053972,120]
[325211622,1714589455542,-500.0,0.00053972,120]
[325211623,1714589455552,-500.0,0.00053972,2]
[325211624,1714589455561,-151.0,0.00053972,7]
[325211625,1714589455571,-151.0,0.00053972,7]
[325211626,1714589455581,-151.0,0.00053972,7]
[325211627,1714589455591,-151.0,0.00053972,7]
[325211628,1714589455600,-151.0,0.00053972,7]
[325211629,1714589455610,-151.0,0.00053972,7]
[325211630,1714589455620,-500.0,0.00053972,120]
[325211631,1714589455629,-500.0,0.00053972,120]
[325211632,1714589455639,-517.3,0.00053972,120]
[325211633,1714589455648,-554.12,0.00053972,120]
[325211634,1714589455658,-705.36,0.00053972,120]
[325211635,1714589455668,-836.91,0.00053972,120]
[325211636,1714589455677,-500.0,0.00053972,120]
[325211637,1714589455687,-601.05,0.00053972,120]
[325211638,1714589455699,-500.0,0.00053972,120]
[325211639,1714589455708,-791.02,0.00053972,120]
[325211640,1714589455717,-894.54,0.00053972,120]
[325211641,1714589455727,-180.230336,0.00053972,7]
[325211642,1714589455736,-500.0,0.00053972,120]
[325211643,1714589455745,-180.230336,0.00053972,7]
[325211644,1714589455755,-500.0,0.00053972,120]
[325211645,1714589455764,-180.230336,0.00053972,7]
[325211646,1714589455774,-308.54558396,0.00053972,120]
[325211647,1714589455783,-326.5466235,0.00053972,120]
[325211648,1714589455792,-180.230336,0.00053972,7]
[325211649,1714589455803,-180.230336,0.00053972,7]
[325211650,1714589455813,-500.0,0.00053972,120]
[325211651,1714589455822,-1062.83,0.00053972,120]
[325211652,1714589455832,-180.230336,0.00053972,7]
[325211653,1714589455841,-1025.67,0.00053972,120]
[325211654,1714589455851,-500.0,0.00053972,120]
[325211655,1714589455860,-151.0,0.00053972,7]
[325211656,1714589455869,-151.0,0.00053972,7]
[325211657,1714589455878,-151.0,0.00053972,7]
[325211658,1714589456031,-500.0,0.00053972,120]
[325211659,1714589456043,-500.0,0.00053972,120]
[325211660,1714589456052,-500.0,0.00053972,120]
[325211661,1714589456062,-1210.58,0.00053972,120]
[325211662,1714589456075,-597.73,0.00053972,120]
[325211663,1714589456086,-241.05772642,0.00053972,120]
[325211664,1714589456098,-500.0,0.00053972,120]
[325211665,1714589456107,-500.0,0.00053972,120]
[325211666,1714589456117,-196.64433549,0.00053972,120]
[325211667,1714589456126,-1067.8,0.00053972,120]
[325211668,1714589456136,-781.19,0.00053972,120]
[325211669,1714589456145,-151.0,0.00053972,7]
[325211670,1714589456155,-500.0,0.00053972,120]
[325211671,1714589456164,-500.0,0.00053972,2]
[325211672,1714589456174,-151.0,0.00053972,7]
[325211673,1714589456183,-151.0,0.00053972,7]
[325211674,1714589456192,-151.0,0.00053972,7]
[325211675,1714589456206,-151.0,0.00053972,7]
[325211676,1714589456215,-151.0,0.00053972,7]
[325211677,1714589456224,-500.0,0.00053972,120]
[325211678,1714589456233,-500.0,0.00053972,120]
[325211679,1714589456242,-890.11,0.00053972,120]
[325211680,1714589456251,-500.0,0.00053972,120]
[325211681,1714589456261,-391.545341,0.00053972,7]
[325211682,1714589456270,-391.545341,0.00053972,7]
[325211683,1714589456279,-500.0,0.00053972,120]
[325211684,1714589456289,-391.545341,0.00053972,7]
[325211685,1714589456298,-500.0,0.00053972,60]
[325211686,1714589456307,-500.0,0.00053972,120]
[325211687,1714589456316,-391.545341,0.00053972,7]
[325211688,1714589456326,-613.17,0.00053972,120]
[325211689,1714589456335,-391.545341,0.00053972,7]
[325211690,1714589456344,-391.545341,0.00053972,7]
[325211691,1714589456354,-500.0,0.00053972,120]
[325211692,1714589456363,-500.0,0.00053972,120]
[325211693,1714589456373,-500.0,0.00053972,2]
[325211694,1714589456383,-500.0,0.00053972,120]
[325211695,1714589456392,-500.0,0.00053972,120]
[325211696,1714589456401,-500.0,0.00053972,120]
[325211697,1714589456410,-238.303855,0.00053972,7]
[325211698,1714589456419,-500.0,0.00053972,120]
[325211699,1714589456428,-500.0,0.00053972,120]
[325211700,1714589456440,-500.0,0.00053972,120]
[325211701,1714589456455,-500.0,0.00053972,120]
[325211702,1714589456464,-500.0,0.00053972,120]
[325211703,1714589456477,-500.0,0.00053972,120]
[325211704,1714589456487,-500.0,0.00053972,120]
[325211705,1714589456496,-940.72,0.00053972,120]
[325211706,1714589456506,-500.0,0.00053972,120]
[325211707,1714589456515,-500.0,0.00053972,120]
[325211708,1714589456524,-500.0,0.00053972,120]
[325211709,1714589456534,-500.0,0.00053972,120]
[325211710,1714589456543,-500.0,0.00053972,120]
[325211711,1714589456553,-500.0,0.00053972,120]
[325211712,1714589456562,-450.45643041,0.00053972,120]
[325211713,1714589456572,-500.0,0.00053972,120]
[325211714,1714589456581,-1108.58,0.00053972,120]
[325211715,1714589456591,-500.0,0.00053972,120]
[325211716,1714589456600,-1012.19,0.00053972,120]
[325211717,1714589456609,-500.0,0.00053972,120]
[325211718,1714589456619,-500.0,0.00053972,120]
[325211719,1714589456628,-500.0,0.00053972,120]
[325211720,1714589456640,-647.06,0.00053972,120]
[325211721,1714589456650,-642.28,0.00053972,120]
[325211722,1714589456659,-500.0,0.00053972,120]
[325211723,1714589456668,-937.39,0.00053972,120]
[325211724,1714589456678,-502.95646567,0.00053972,120]
[325211725,1714589456687,-345.872956,0.00053972,7]
[325211726,1714589456698,-345.872956,0.00053972,7]
[325211727,1714589456708,-345.872956,0.00053972,7]
[325211728,1714589456717,-500.0,0.00053972,120]
[325211729,1714589456727,-500.0,0.00053972,120]
[325211730,1714589456737,-345.872956,0.00053972,7]
[325211731,1714589456746,-1144.05,0.00053972,120]
[325211732,1714589456756,-345.872956,0.00053972,7]
[325211733,1714589456765,-345.872956,0.00053972,7]
[325211734,1714589456774,-500.0,0.00053972,120]
[325211735,1714589456783,-156.331698,0.00053972,7]
[325211736,1714589456793,-156.331698,0.00053972,7]
[325211737,1714589456804,-156.331698,0.00053972,7]
[325211738,1714589456813,-500.0,0.00053972,120]
[325211739,1714589456823,-1143.55,0.00053972,120]
[325211740,1714589456832,-794.21,0.00053972,120]
[325211741,1714589456841,-156.331698,0.00053972,7]
[325211742,1714589456851,-156.331698,0.00053972,7]
[325211743,1714589456860,-156.331698,0.00053972,7]
[325211744,1714589456870,-500.0,0.00053972,120]
[325211745,1714589456879,-600.08,0.00053972,120]
[325211746,1714589456888,-500.0,0.00053972,120]
[325211747,1714589456897,-1621.15,0.00053972,120]
[325211748,1714589456906,-335.33380821,0.00053972,120]
[325211749,1714589456915,-949.04,0.00053972,120]
[325211750,1714589456924,-500.0,0.00053972,120]
[325211751,1714589456934,-500.0,0.00053972,120]
[325211752,1714589456943,-589.8,0.00053972,120]
[325211753,1714589456954,-500.0,0.00053972,120]
[325211754,1714589456963,-514.23066112,0.00053972,120]
[325211755,1714589456973,-500.0,0.00053972,120]
[325211756,1714589456982,-500.0,0.00053972,120]
[325211757,1714589456992,-1133.03,0.00053972,120]
[325211758,1714589457001,-500.0,0.00053972,120]
[325211759,1714589457010,-500.0,0.00053972,120]
[325211760,1714589457020,-500.0,0.00053972,120]
[325211761,1714589457033,-580.67,0.00053972,120]
[325211762,1714589457042,-500.0,0.00053972,120]
[325211763,1714589457051,-283.60326409,0.00053972,120]
[325211764,1714589457061,-500.0,0.00053972,120]
[325211765,1714589457070,-500.0,0.00053972,120]
[325211766,1714589457079,-3485.46,0.00053972,120]
[325211767,1714589457089,-1115.26,0.00053972,120]
[325211768,1714589457098,-500.0,0.00053972,120]
[325211769,1714589457108,-3503.91,0.00053972,120]
[325211770,1714589457117,-500.0,0.00053972,120]
[325211771,1714589457126,-500.0,0.00053972,120]
[325211772,1714589457135,-500.0,0.00053972,120]
[325211773,1714589457145,-500.0,0.00053972,120]
[325211774,1714589457154,-500.0,0.00053972,120]
[325211775,1714589457163,-500.0,0.00053972,120]
[325211776,1714589457172,-503.82170102,0.00053972,120]
[325211777,1714589457181,-553.84,0.00053972,120]
[325211778,1714589457191,-500.0,0.00053972,120]
[325211779,1714589457203,-500.0,0.00053972,120]
[325211780,1714589457212,-502.2,0.00053972,120]
[325211781,1714589457222,-500.0,0.00053972,120]
[325211782,1714589457233,-151.0,0.00053972,7]
[325211783,1714589457242,-151.0,0.00053972,7]
[325211784,1714589457252,-151.0,0.00053972,7]
[325211785,1714589457261,-151.0,0.00053972,7]
[325211786,1714589457274,-880.99,0.00053972,120]
[325211787,1714589457283,-151.0,0.00053972,7]